[Event "Early-Titled-Tuesday-Blitz-September-12-2023"]
[Site "Chess.com"]
[Date "2023.09.12"]
[Round "1"]
[White "Stewie_89"]
[Black "Cayse"]
[Result "0-1"]
[WhiteElo "2479"]
[BlackElo "2860"]
[TimeControl "180+1"]
[EndTime "8:04:19 PDT"]
[Termination "Cayse won by resignation"]

1. e4 {[%clk 0:03:00.9]} 1... e5 {[%clk 0:02:59.9]} 2. Nf3 {[%clk 0:03:00.4]}
2... Nc6 {[%clk 0:03:00.2]} 3. Bb5 {[%clk 0:02:59.5]} 3... a6 {[%clk 0:03:00.3]}
4. Ba4 {[%clk 0:02:59.1]} 4... Nf6 {[%clk 0:03:00.8]} 5. d3 {[%clk 0:02:57.4]}
5... b5 {[%clk 0:02:58]} 6. Bb3 {[%clk 0:02:56.2]} 6... Be7 {[%clk 0:02:58.6]}
7. O-O {[%clk 0:02:54.9]} 7... O-O {[%clk 0:02:58.1]} 8. Nbd2 {[%clk 0:02:54.3]}
8... d6 {[%clk 0:02:57.5]} 9. c3 {[%clk 0:02:53.9]} 9... Na5 {[%clk 0:02:56.9]}
10. Bc2 {[%clk 0:02:54.1]} 10... c5 {[%clk 0:02:57.5]} 11. h3 {[%clk 0:02:52.4]}
11... Qc7 {[%clk 0:02:55.3]} 12. Re1 {[%clk 0:02:50.3]} 12... Nc6 {[%clk
0:02:52.6]} 13. Nf1 {[%clk 0:02:48]} 13... Re8 {[%clk 0:02:51.9]} 14. Bg5 {[%clk
0:02:45.2]} 14... h6 {[%clk 0:02:49.7]} 15. Bh4 {[%clk 0:02:36]} 15... Be6
{[%clk 0:02:45.5]} 16. a4 {[%clk 0:02:34.6]} 16... b4 {[%clk 0:02:36.3]} 17. Ne3
{[%clk 0:02:30]} 17... Rab8 {[%clk 0:02:35.8]} 18. c4 {[%clk 0:02:18.6]} 18...
Nd4 {[%clk 0:02:29.3]} 19. Nxd4 {[%clk 0:02:11.6]} 19... cxd4 {[%clk 0:02:30.2]}
20. Nf1 {[%clk 0:01:57.8]} 20... b3 {[%clk 0:02:13.5]} 21. Bxb3 {[%clk
0:01:52.1]} 21... Nd7 {[%clk 0:02:12.9]} 22. Bxe7 {[%clk 0:01:49]} 22... Rxe7
{[%clk 0:02:13.8]} 23. Rb1 {[%clk 0:01:43.3]} 23... Nc5 {[%clk 0:02:13.2]} 24.
Bc2 {[%clk 0:01:43.2]} 24... Rb4 {[%clk 0:02:13.3]} 25. f4 {[%clk 0:01:34.6]}
25... exf4 {[%clk 0:02:11.1]} 26. Qd2 {[%clk 0:01:34.2]} 26... Qb8 {[%clk
0:02:04.4]} 27. Bd1 {[%clk 0:01:09.8]} 27... Reb7 {[%clk 0:02:03.4]} 28. Qxf4
{[%clk 0:01:06.3]} 28... Nxd3 {[%clk 0:02:03]} 29. Qd2 {[%clk 0:01:04.7]} 29...
Nxe1 {[%clk 0:02:03]} 30. Qxe1 {[%clk 0:01:05.6]} 30... Rxb2 {[%clk 0:02:03.3]}
31. Rxb2 {[%clk 0:01:06]} 31... Rxb2 {[%clk 0:02:03.9]} 32. Bf3 {[%clk
0:01:01.6]} 0-1

[Event "Early-Titled-Tuesday-Blitz-September-12-2023"]
[Site "Chess.com"]
[Date "2023.09.12"]
[Round "1"]
[White "carloseduar100"]
[Black "Andrei_Belozerov"]
[Result "0-1"]
[WhiteElo "2286"]
[BlackElo "2592"]
[TimeControl "180+1"]
[EndTime "8:04:20 PDT"]
[Termination "Andrei_Belozerov won by checkmate"]

1. e4 {[%clk 0:02:56]} 1... c5 {[%clk 0:03:00]} 2. Nf3 {[%clk 0:02:55.5]} 2...
d6 {[%clk 0:03:00.2]} 3. Bc4 {[%clk 0:02:55.5]} 3... Nf6 {[%clk 0:02:59.2]} 4.
Nc3 {[%clk 0:02:56.2]} 4... e6 {[%clk 0:02:55.3]} 5. O-O {[%clk 0:02:56.6]} 5...
Nc6 {[%clk 0:02:55.3]} 6. Re1 {[%clk 0:02:56.9]} 6... Be7 {[%clk 0:02:54.5]} 7.
d4 {[%clk 0:02:56.8]} 7... cxd4 {[%clk 0:02:54.4]} 8. Nxd4 {[%clk 0:02:57.7]}
8... O-O {[%clk 0:02:54.6]} 9. Bg5 {[%clk 0:02:55.4]} 9... a6 {[%clk 0:02:52.2]}
10. a4 {[%clk 0:02:54.8]} 10... Qc7 {[%clk 0:02:48.4]} 11. Bb3 {[%clk 0:02:52]}
11... Bd7 {[%clk 0:02:45.1]} 12. h3 {[%clk 0:02:48.5]} 12... Rac8 {[%clk
0:02:41.9]} 13. Kh1 {[%clk 0:02:46.8]} 13... Rfd8 {[%clk 0:02:39.7]} 14. f4
{[%clk 0:02:45.9]} 14... h6 {[%clk 0:02:31]} 15. Bh4 {[%clk 0:02:43.7]} 15...
Nxe4 {[%clk 0:02:25.8]} 16. Nxe4 {[%clk 0:02:17.6]} 16... Bxh4 {[%clk
0:02:24.4]} 17. Nxc6 {[%clk 0:02:18.5]} 17... Bxc6 {[%clk 0:02:22.5]} 18. g3
{[%clk 0:02:13.3]} 18... Bxg3 {[%clk 0:02:19.1]} 19. Re2 {[%clk 0:02:00.6]}
19... Bxf4 {[%clk 0:02:17.9]} 20. Qd3 {[%clk 0:01:52]} 20... d5 {[%clk
0:02:10.8]} 21. Nc5 {[%clk 0:01:30.7]} 21... d4+ {[%clk 0:02:10.6]} 22. Kg1
{[%clk 0:01:28.9]} 22... Be3+ {[%clk 0:02:08.8]} 23. Kf1 {[%clk 0:01:20.3]}
23... Qf4+ {[%clk 0:02:05.6]} 24. Ke1 {[%clk 0:01:20.4]} 24... Bf3 {[%clk
0:02:00.9]} 25. Nxe6 {[%clk 0:01:10.8]} 25... fxe6 {[%clk 0:01:59.4]} 26. Bxe6+
{[%clk 0:01:11.7]} 26... Kh8 {[%clk 0:01:59.3]} 27. Bxc8 {[%clk 0:01:11.7]}
27... Qg3+ {[%clk 0:01:54.1]} 28. Kf1 {[%clk 0:01:01.3]} 28... Qg1# {[%clk
0:01:53.7]} 0-1

[Event "Early-Titled-Tuesday-Blitz-September-12-2023"]
[Site "Chess.com"]
[Date "2023.09.12"]
[Round "1"]
[White "MatyChess1"]
[Black "Masterbeaterr"]
[Result "1-0"]
[WhiteElo "2683"]
[BlackElo "2380"]
[TimeControl "180+1"]
[EndTime "8:04:24 PDT"]
[Termination "MatyChess1 won by resignation"]

1. d4 {[%clk 0:02:57.3]} 1... d5 {[%clk 0:02:59.7]} 2. Bf4 {[%clk 0:02:56.4]}
2... c5 {[%clk 0:02:59.5]} 3. e3 {[%clk 0:02:56.9]} 3... cxd4 {[%clk 0:02:59.5]}
4. exd4 {[%clk 0:02:57.1]} 4... Nc6 {[%clk 0:03:00.4]} 5. c3 {[%clk 0:02:57.5]}
5... f6 {[%clk 0:03:00.3]} 6. Nf3 {[%clk 0:02:50.3]} 6... g5 {[%clk 0:02:58.8]}
7. Bg3 {[%clk 0:02:47.7]} 7... Bf5 {[%clk 0:02:55.9]} 8. Bd3 {[%clk 0:02:45]}
8... Nh6 {[%clk 0:02:54.8]} 9. O-O {[%clk 0:02:44.4]} 9... Qd7 {[%clk
0:02:52.9]} 10. Re1 {[%clk 0:02:44.3]} 10... Bxd3 {[%clk 0:02:49.7]} 11. Qxd3
{[%clk 0:02:44.3]} 11... Nf5 {[%clk 0:02:50.4]} 12. Nbd2 {[%clk 0:02:19.4]}
12... O-O-O {[%clk 0:02:49]} 13. b4 {[%clk 0:02:10.2]} 13... h5 {[%clk
0:02:45.2]} 14. b5 {[%clk 0:02:09.2]} 14... Na5 {[%clk 0:02:45.4]} 15. Nb3
{[%clk 0:01:46.3]} 15... Nxg3 {[%clk 0:02:24.1]} 16. hxg3 {[%clk 0:01:30.2]}
16... Nc4 {[%clk 0:02:13.2]} 17. Nc5 {[%clk 0:01:26.1]} 17... Qe8 {[%clk
0:02:11.2]} 18. Re6 {[%clk 0:01:02]} 18... Rd6 {[%clk 0:02:04.4]} 19. Qf5 {[%clk
0:00:57.8]} 19... Qxb5 {[%clk 0:01:52.4]} 20. Rxd6+ {[%clk 0:00:54.4]} 1-0

[Event "Early-Titled-Tuesday-Blitz-September-12-2023"]
[Site "Chess.com"]
[Date "2023.09.12"]
[Round "1"]
[White "EvgenyBurmakin"]
[Black "HamedWafa4"]
[Result "1-0"]
[WhiteElo "2284"]
[BlackElo "2569"]
[TimeControl "180+1"]
[EndTime "8:04:29 PDT"]
[Termination "EvgenyBurmakin won by resignation"]

1. e4 {[%clk 0:02:59]} 1... e5 {[%clk 0:02:56.5]} 2. Nf3 {[%clk 0:02:58.1]} 2...
Nc6 {[%clk 0:02:56.3]} 3. Bb5 {[%clk 0:02:58.7]} 3... a6 {[%clk 0:02:54.4]} 4.
Ba4 {[%clk 0:02:59.2]} 4... Nf6 {[%clk 0:02:54.1]} 5. O-O {[%clk 0:02:59]} 5...
Be7 {[%clk 0:02:54.3]} 6. Re1 {[%clk 0:02:59.4]} 6... b5 {[%clk 0:02:54.9]} 7.
Bb3 {[%clk 0:02:59.1]} 7... O-O {[%clk 0:02:55.6]} 8. c3 {[%clk 0:02:59.6]} 8...
d5 {[%clk 0:02:55.2]} 9. exd5 {[%clk 0:02:54.5]} 9... Nxd5 {[%clk 0:02:54.5]}
10. Nxe5 {[%clk 0:02:50.9]} 10... Nxe5 {[%clk 0:02:55.4]} 11. Rxe5 {[%clk
0:02:50.7]} 11... Nf6 {[%clk 0:02:55.7]} 12. d4 {[%clk 0:02:49.3]} 12... Bd6
{[%clk 0:02:49.6]} 13. Re1 {[%clk 0:02:47.8]} 13... Ng4 {[%clk 0:02:47.6]} 14.
h3 {[%clk 0:02:10]} 14... Bh2+ {[%clk 0:02:45.8]} 15. Kf1 {[%clk 0:02:06.7]}
15... Nxf2 {[%clk 0:02:45.3]} 16. Qf3 {[%clk 0:01:53.6]} 16... Nh1 {[%clk
0:02:43.5]} 17. Bf4 {[%clk 0:01:40.1]} 17... Bxf4 {[%clk 0:02:36.1]} 18. Qxf4
{[%clk 0:01:41]} 18... g5 {[%clk 0:02:36]} 19. Qf3 {[%clk 0:01:10.3]} 19... Qd6
{[%clk 0:02:35.1]} 20. Qxa8 {[%clk 0:00:54]} 20... Bxh3 {[%clk 0:02:22.9]} 21.
Qf3 {[%clk 0:00:47]} 21... g4 {[%clk 0:02:16.5]} 22. Qe3 {[%clk 0:00:40.3]}
22... Qh2 {[%clk 0:02:15.9]} 23. Qg5+ {[%clk 0:00:29.4]} 23... Kh8 {[%clk
0:02:13.3]} 24. Qf6+ {[%clk 0:00:30]} 24... Kg8 {[%clk 0:02:13.1]} 25. Bxf7+
{[%clk 0:00:28.3]} 25... Rxf7 {[%clk 0:02:11.7]} 26. Re8+ {[%clk 0:00:29]} 1-0

[Event "Early-Titled-Tuesday-Blitz-September-12-2023"]
[Site "Chess.com"]
[Date "2023.09.12"]
[Round "1"]
[White "iwanyu"]
[Black "Sleepless_Knightmare"]
[Result "1-0"]
[WhiteElo "2693"]
[BlackElo "2392"]
[TimeControl "180+1"]
[EndTime "8:04:49 PDT"]
[Termination "iwanyu won by resignation"]

1. d4 {[%clk 0:03:00.9]} 1... d5 {[%clk 0:03:00.3]} 2. c4 {[%clk 0:03:00.7]}
2... e6 {[%clk 0:03:00.9]} 3. Nf3 {[%clk 0:03:01.3]} 3... Nf6 {[%clk 0:03:01.1]}
4. g3 {[%clk 0:03:01.9]} 4... c6 {[%clk 0:03:01.4]} 5. Bg2 {[%clk 0:03:01.8]}
5... dxc4 {[%clk 0:03:02]} 6. Ne5 {[%clk 0:03:00.3]} 6... Bb4+ {[%clk
0:02:57.4]} 7. Nc3 {[%clk 0:03:00.8]} 7... c5 {[%clk 0:02:56.5]} 8. O-O {[%clk
0:02:44.5]} 8... Qxd4 {[%clk 0:02:52.2]} 9. Qxd4 {[%clk 0:02:40.9]} 9... cxd4
{[%clk 0:02:51.8]} 10. Nb5 {[%clk 0:02:41.3]} 10... Na6 {[%clk 0:02:50.2]} 11.
Nxc4 {[%clk 0:02:38]} 11... Ke7 {[%clk 0:02:30]} 12. a3 {[%clk 0:02:34.2]} 12...
Bc5 {[%clk 0:02:28]} 13. b4 {[%clk 0:02:33.2]} 13... Bb6 {[%clk 0:02:28]} 14.
Bf4 {[%clk 0:02:07.3]} 14... Rd8 {[%clk 0:02:26.1]} 15. Rfd1 {[%clk 0:01:57]}
15... Ne8 {[%clk 0:02:23.3]} 16. Nxb6 {[%clk 0:01:43.8]} 16... axb6 {[%clk
0:02:22.3]} 17. Nxd4 {[%clk 0:01:44]} 17... f6 {[%clk 0:02:18.7]} 18. Be3 {[%clk
0:01:41.1]} 18... e5 {[%clk 0:02:17]} 19. Nb5 {[%clk 0:01:39.5]} 19... Bd7
{[%clk 0:02:16.7]} 20. Nc3 {[%clk 0:01:30.3]} 20... Bc6 {[%clk 0:02:11.7]} 21.
Nd5+ {[%clk 0:01:29.7]} 21... Bxd5 {[%clk 0:02:11.1]} 22. Bxd5 {[%clk
0:01:30.6]} 22... Rxd5 {[%clk 0:02:04.3]} 23. Rxd5 {[%clk 0:01:30.1]} 23... Nxb4
{[%clk 0:02:04.9]} 24. Rd2 {[%clk 0:01:27.2]} 24... Nc7 {[%clk 0:01:56.9]} 25.
Rad1 {[%clk 0:01:25.4]} 25... Nba6 {[%clk 0:01:51.1]} 26. Rd7+ {[%clk
0:01:23.3]} 26... Kf8 {[%clk 0:01:49.7]} 27. Bxb6 {[%clk 0:01:23]} 27... Ne6
{[%clk 0:01:48.6]} 28. Rxb7 {[%clk 0:01:20]} 28... Nac5 {[%clk 0:01:48.8]} 29.
Ra7 {[%clk 0:01:18.8]} 29... Rxa7 {[%clk 0:01:46.7]} 30. Bxa7 {[%clk 0:01:18.8]}
30... Nb3 {[%clk 0:01:44.9]} 31. Bb6 {[%clk 0:01:16.7]} 31... Ned4 {[%clk
0:01:43]} 32. e3 {[%clk 0:01:14]} 32... Nc2 {[%clk 0:01:42.5]} 33. a4 {[%clk
0:01:12.8]} 33... Ke7 {[%clk 0:01:38]} 34. a5 {[%clk 0:01:11.8]} 34... Ke6
{[%clk 0:01:30.1]} 35. a6 {[%clk 0:01:11.4]} 35... Nb4 {[%clk 0:01:30]} 36. a7
{[%clk 0:01:11.1]} 1-0

[Event "Early-Titled-Tuesday-Blitz-September-12-2023"]
[Site "Chess.com"]
[Date "2023.09.12"]
[Round "1"]
[White "Fleetw00dMac"]
[Black "Mikhail_Bryakin"]
[Result "1-0"]
[WhiteElo "2457"]
[BlackElo "2758"]
[TimeControl "180+1"]
[EndTime "8:05:00 PDT"]
[Termination "Fleetw00dMac won on time"]

1. d4 {[%clk 0:03:00.9]} 1... f5 {[%clk 0:02:57.6]} 2. Nc3 {[%clk 0:03:00]} 2...
Nf6 {[%clk 0:02:58]} 3. Bg5 {[%clk 0:02:59.3]} 3... d5 {[%clk 0:02:55.7]} 4. Nf3
{[%clk 0:02:58.5]} 4... e6 {[%clk 0:02:49]} 5. e3 {[%clk 0:02:58]} 5... Be7
{[%clk 0:02:49.1]} 6. Bd3 {[%clk 0:02:57.4]} 6... c6 {[%clk 0:02:48.3]} 7. O-O
{[%clk 0:02:56]} 7... O-O {[%clk 0:02:48.6]} 8. Ne2 {[%clk 0:02:46]} 8... Bd7
{[%clk 0:02:46.1]} 9. c4 {[%clk 0:02:44]} 9... Ne4 {[%clk 0:00:21.7]} 10. Bxe7
{[%clk 0:02:37.8]} 10... Qxe7 {[%clk 0:00:22.6]} 11. Ne5 {[%clk 0:02:35]} 11...
Be8 {[%clk 0:00:22.7]} 12. f3 {[%clk 0:02:31.1]} 12... Nf6 {[%clk 0:00:22.7]}
13. Rc1 {[%clk 0:02:26.4]} 13... Nbd7 {[%clk 0:00:22.7]} 14. Qb3 {[%clk
0:01:52.4]} 14... Rb8 {[%clk 0:00:20.7]} 15. Rfe1 {[%clk 0:01:43.1]} 1-0

[Event "Early-Titled-Tuesday-Blitz-September-12-2023"]
[Site "Chess.com"]
[Date "2023.09.12"]
[Round "1"]
[White "SantoBlue"]
[Black "surrenderPLS"]
[Result "1-0"]
[WhiteElo "2921"]
[BlackElo "2508"]
[TimeControl "180+1"]
[EndTime "8:05:01 PDT"]
[Termination "SantoBlue won by resignation"]

1. e4 {[%clk 0:03:00.2]} 1... c5 {[%clk 0:02:59.3]} 2. Nc3 {[%clk 0:02:59.9]}
2... Nc6 {[%clk 0:02:58.4]} 3. Bb5 {[%clk 0:02:59.9]} 3... Nd4 {[%clk
0:02:57.3]} 4. a4 {[%clk 0:02:59.5]} 4... g6 {[%clk 0:02:55.5]} 5. Nf3 {[%clk
0:02:56.3]} 5... Bg7 {[%clk 0:02:55.1]} 6. O-O {[%clk 0:02:56.1]} 6... a6 {[%clk
0:02:52.2]} 7. Bc4 {[%clk 0:02:55.8]} 7... e6 {[%clk 0:02:51.1]} 8. Nxd4 {[%clk
0:02:53.4]} 8... cxd4 {[%clk 0:02:47.6]} 9. Ne2 {[%clk 0:02:53.9]} 9... Ne7
{[%clk 0:02:47.6]} 10. d3 {[%clk 0:02:45.9]} 10... d5 {[%clk 0:02:41.3]} 11. Bb3
{[%clk 0:02:45.5]} 11... O-O {[%clk 0:02:37.4]} 12. Bg5 {[%clk 0:02:44.9]} 12...
dxe4 {[%clk 0:02:31.1]} 13. dxe4 {[%clk 0:02:43.6]} 13... h6 {[%clk 0:02:20.3]}
14. Bh4 {[%clk 0:02:41.1]} 14... g5 {[%clk 0:02:19]} 15. Bg3 {[%clk 0:02:41.4]}
15... Nc6 {[%clk 0:02:17.6]} 16. f4 {[%clk 0:02:37.3]} 16... b6 {[%clk
0:01:51.5]} 17. Nc1 {[%clk 0:02:19.5]} 17... Bb7 {[%clk 0:01:39.9]} 18. Nd3
{[%clk 0:02:19.5]} 18... Na5 {[%clk 0:01:14.3]} 19. Qe2 {[%clk 0:02:19.5]} 19...
Nxb3 {[%clk 0:01:13.5]} 20. cxb3 {[%clk 0:02:20.4]} 20... Rc8 {[%clk 0:01:09.5]}
21. Rae1 {[%clk 0:02:17.9]} 21... Qe7 {[%clk 0:00:55.2]} 22. Qh5 {[%clk
0:02:15]} 22... f5 {[%clk 0:00:40.1]} 23. exf5 {[%clk 0:02:13.5]} 23... Rxf5
{[%clk 0:00:39.4]} 24. Qg4 {[%clk 0:02:11.5]} 24... Rcf8 {[%clk 0:00:36.4]} 25.
h3 {[%clk 0:02:07.7]} 25... Qd6 {[%clk 0:00:35.9]} 26. fxg5 {[%clk 0:02:00.6]}
26... Qd5 {[%clk 0:00:33.9]} 27. Nf4 {[%clk 0:01:54.9]} 27... Qxb3 {[%clk
0:00:24.9]} 28. gxh6 {[%clk 0:01:54.1]} 1-0

[Event "Early-Titled-Tuesday-Blitz-September-12-2023"]
[Site "Chess.com"]
[Date "2023.09.12"]
[Round "1"]
[White "Iunusovnuriddin"]
[Black "Diaschess88"]
[Result "0-1"]
[WhiteElo "2336"]
[BlackElo "2640"]
[TimeControl "180+1"]
[EndTime "8:05:05 PDT"]
[Termination "Diaschess88 won by resignation"]

1. e4 {[%clk 0:02:55.2]} 1... c5 {[%clk 0:02:59.2]} 2. c3 {[%clk 0:02:54.3]}
2... d5 {[%clk 0:02:58.9]} 3. exd5 {[%clk 0:02:54.1]} 3... Qxd5 {[%clk
0:02:59.4]} 4. d4 {[%clk 0:02:55]} 4... Nf6 {[%clk 0:02:58.7]} 5. Nf3 {[%clk
0:02:55.3]} 5... e6 {[%clk 0:02:58.9]} 6. Be3 {[%clk 0:02:52.9]} 6... Nc6 {[%clk
0:02:50.1]} 7. dxc5 {[%clk 0:02:50.3]} 7... Qxd1+ {[%clk 0:02:48.6]} 8. Kxd1
{[%clk 0:02:51.2]} 8... Ng4 {[%clk 0:02:47]} 9. b4 {[%clk 0:02:48.4]} 9... Nxe3+
{[%clk 0:02:47.1]} 10. fxe3 {[%clk 0:02:49.3]} 10... a5 {[%clk 0:02:47.7]} 11.
Bb5 {[%clk 0:02:48.6]} 11... Bd7 {[%clk 0:02:47.6]} 12. Bxc6 {[%clk 0:02:39.3]}
12... Bxc6 {[%clk 0:02:48.5]} 13. Nd4 {[%clk 0:02:39.7]} 13... Bxg2 {[%clk
0:02:46.3]} 14. Rg1 {[%clk 0:02:40.2]} 14... Bd5 {[%clk 0:02:44.8]} 15. a4
{[%clk 0:02:30.8]} 15... O-O-O {[%clk 0:02:36.1]} 16. Nd2 {[%clk 0:02:12.8]}
16... e5 {[%clk 0:02:28.9]} 17. Nb5 {[%clk 0:02:08.7]} 17... g6 {[%clk
0:02:28.2]} 18. Kc2 {[%clk 0:02:02.7]} 18... f5 {[%clk 0:02:23.9]} 19. e4 {[%clk
0:01:33.1]} 19... fxe4 {[%clk 0:02:19.8]} 20. Rae1 {[%clk 0:01:33.1]} 20... Bh6
{[%clk 0:02:04.4]} 21. Nxe4 {[%clk 0:01:32.8]} 21... Bf4 {[%clk 0:02:04.9]} 22.
Ned6+ {[%clk 0:00:49.5]} 22... Kb8 {[%clk 0:02:04.1]} 23. c4 {[%clk 0:00:44.4]}
23... Bc6 {[%clk 0:01:56.5]} 24. Nf7 {[%clk 0:00:43.9]} 24... Rd2+ {[%clk
0:01:52.7]} 25. Kb3 {[%clk 0:00:41.3]} 25... Rf8 {[%clk 0:01:44.4]} 26. Nxe5
{[%clk 0:00:40.5]} 26... Bxe5 {[%clk 0:01:44.5]} 27. Rxe5 {[%clk 0:00:41.4]}
27... Rf3+ {[%clk 0:01:45]} 28. Nc3 {[%clk 0:00:40.3]} 28... axb4 {[%clk
0:01:44.7]} 29. Kxb4 {[%clk 0:00:41.2]} 29... Rb2+ {[%clk 0:01:44.7]} 30. Ka3
{[%clk 0:00:40.4]} 30... Rc2 {[%clk 0:01:44.8]} 0-1

[Event "Early-Titled-Tuesday-Blitz-September-12-2023"]
[Site "Chess.com"]
[Date "2023.09.12"]
[Round "1"]
[White "FARIZA2018"]
[Black "DenLaz"]
[Result "0-1"]
[WhiteElo "2533"]
[BlackElo "3070"]
[TimeControl "180+1"]
[EndTime "8:05:09 PDT"]
[Termination "DenLaz won by checkmate"]

1. e4 {[%clk 0:02:50.5]} 1... c5 {[%clk 0:02:59.7]} 2. Nf3 {[%clk 0:02:42.4]}
2... e6 {[%clk 0:02:59.6]} 3. d4 {[%clk 0:02:30.8]} 3... cxd4 {[%clk 0:02:59.5]}
4. Nxd4 {[%clk 0:02:31]} 4... Nc6 {[%clk 0:03:00.1]} 5. Nc3 {[%clk 0:02:29.8]}
5... Qc7 {[%clk 0:02:59.9]} 6. Be2 {[%clk 0:02:29.8]} 6... a6 {[%clk 0:02:59.6]}
7. O-O {[%clk 0:02:29.6]} 7... Nf6 {[%clk 0:02:59.1]} 8. Kh1 {[%clk 0:02:28.7]}
8... Be7 {[%clk 0:02:40.3]} 9. Be3 {[%clk 0:02:27.2]} 9... O-O {[%clk
0:02:37.1]} 10. f4 {[%clk 0:02:27.3]} 10... d6 {[%clk 0:02:37]} 11. Qe1 {[%clk
0:02:25.7]} 11... Nxd4 {[%clk 0:02:36.4]} 12. Bxd4 {[%clk 0:02:25.5]} 12... b5
{[%clk 0:02:37]} 13. e5 {[%clk 0:02:23.5]} 13... dxe5 {[%clk 0:02:34.8]} 14.
Bxe5 {[%clk 0:02:06.7]} 14... Qb6 {[%clk 0:02:33.8]} 15. Bd3 {[%clk 0:02:02.3]}
15... Bb7 {[%clk 0:02:29.5]} 16. Qg3 {[%clk 0:02:01.8]} 16... g6 {[%clk
0:02:09]} 17. Rae1 {[%clk 0:01:48.5]} 17... b4 {[%clk 0:01:59.9]} 18. Ne4 {[%clk
0:01:38.4]} 18... Nxe4 {[%clk 0:01:37.2]} 19. Bxe4 {[%clk 0:01:38.3]} 19... Bxe4
{[%clk 0:01:37.7]} 20. Rxe4 {[%clk 0:01:38.1]} 20... Rac8 {[%clk 0:01:37.1]} 21.
c3 {[%clk 0:01:36.6]} 21... a5 {[%clk 0:01:32.8]} 22. Qh3 {[%clk 0:01:29.7]}
22... Rfe8 {[%clk 0:01:12.3]} 23. Bd4 {[%clk 0:01:21.1]} 23... Qb5 {[%clk
0:01:09.8]} 24. Re3 {[%clk 0:01:08.1]} 24... Qxf1# {[%clk 0:00:55.1]} 0-1

[Event "Early-Titled-Tuesday-Blitz-September-12-2023"]
[Site "Chess.com"]
[Date "2023.09.12"]
[Round "1"]
[White "the-gambler"]
[Black "Firouzja2003"]
[Result "0-1"]
[WhiteElo "2532"]
[BlackElo "3066"]
[TimeControl "180+1"]
[EndTime "8:05:11 PDT"]
[Termination "Firouzja2003 won by resignation"]

1. Nf3 {[%clk 0:03:00.9]} 1... Nf6 {[%clk 0:02:59.7]} 2. c4 {[%clk 0:03:00.1]}
2... g6 {[%clk 0:03:00.2]} 3. g3 {[%clk 0:03:00.4]} 3... Bg7 {[%clk 0:03:00.8]}
4. Bg2 {[%clk 0:03:00.8]} 4... O-O {[%clk 0:03:01.7]} 5. Nc3 {[%clk 0:03:01]}
5... d6 {[%clk 0:03:02.6]} 6. O-O {[%clk 0:03:00.9]} 6... Nbd7 {[%clk
0:03:03.5]} 7. d3 {[%clk 0:03:01]} 7... e5 {[%clk 0:03:04.4]} 8. Rb1 {[%clk
0:03:00.8]} 8... a5 {[%clk 0:03:01.1]} 9. a3 {[%clk 0:03:00.9]} 9... c6 {[%clk
0:03:01.3]} 10. b4 {[%clk 0:02:57.8]} 10... axb4 {[%clk 0:03:01.5]} 11. axb4
{[%clk 0:02:58.3]} 11... d5 {[%clk 0:03:00.3]} 12. cxd5 {[%clk 0:02:45.1]} 12...
cxd5 {[%clk 0:03:01.2]} 13. Qb3 {[%clk 0:02:45.1]} 13... d4 {[%clk 0:02:59.2]}
14. Nd5 {[%clk 0:02:39.9]} 14... Nxd5 {[%clk 0:02:50.8]} 15. Qxd5 {[%clk
0:02:39.2]} 15... Nb6 {[%clk 0:02:46.8]} 16. Qxd8 {[%clk 0:02:39.1]} 16... Rxd8
{[%clk 0:02:47.7]} 17. Bg5 {[%clk 0:02:38.4]} 17... f6 {[%clk 0:02:47.8]} 18.
Bd2 {[%clk 0:02:38]} 18... Be6 {[%clk 0:02:46.8]} 19. Rfc1 {[%clk 0:02:34.1]}
19... Nd5 {[%clk 0:02:46.3]} 20. b5 {[%clk 0:02:29.6]} 20... Ra2 {[%clk
0:02:43.3]} 21. Ra1 {[%clk 0:02:26.9]} 21... Rda8 {[%clk 0:02:42.3]} 22. Rxa2
{[%clk 0:02:25.4]} 22... Rxa2 {[%clk 0:02:43.2]} 23. Kf1 {[%clk 0:02:21.3]}
23... Bf8 {[%clk 0:02:42.3]} 24. Ke1 {[%clk 0:01:52.9]} 24... Rb2 {[%clk
0:02:41.1]} 25. e4 {[%clk 0:01:41.6]} 25... dxe3 {[%clk 0:02:28.1]} 26. fxe3
{[%clk 0:01:41.2]} 26... Nxe3 {[%clk 0:02:25.2]} 27. Bxe3 {[%clk 0:01:35.9]}
27... Rxg2 {[%clk 0:02:26.1]} 28. Rc7 {[%clk 0:01:29.4]} 28... Bg4 {[%clk
0:02:22.6]} 29. Ng1 {[%clk 0:01:21.5]} 29... f5 {[%clk 0:02:04.8]} 30. Kf1
{[%clk 0:01:15.7]} 30... Rxh2 {[%clk 0:02:04.2]} 31. Rxb7 {[%clk 0:01:13]} 31...
Rb2 {[%clk 0:01:57.6]} 32. Rb8 {[%clk 0:01:12.5]} 32... Kf7 {[%clk 0:01:57.2]}
33. Rb7+ {[%clk 0:01:12.4]} 33... Ke6 {[%clk 0:01:57.4]} 34. b6 {[%clk
0:01:06.5]} 34... f4 {[%clk 0:01:55.2]} 35. gxf4 {[%clk 0:01:05.8]} 35... exf4
{[%clk 0:01:55.8]} 36. Bd4 {[%clk 0:00:57.4]} 36... Rb4 {[%clk 0:01:56]} 37. Bc3
{[%clk 0:00:49.7]} 37... Rb3 {[%clk 0:01:55.8]} 38. Rb8 {[%clk 0:00:46.5]} 38...
Bd6 {[%clk 0:01:53]} 39. Re8+ {[%clk 0:00:42.5]} 39... Kd7 {[%clk 0:01:51.9]}
0-1